Workbook

Sheet Sheet1
B1: The Graph of a Polynomial
B3: This graphing utility produces the graph
B4: of any desired polynomial (up to 8th degree)
B5: y = c0x8+c1x7+c2x6+c3x5+c4x4+c5x3+c6x2+c7x+c8
B6: where c0, c1, c2, c3, c4, c5, c6, c7, c8 are any coefficients
B7: on any interval from x = a to x = b.
A9: First enter the value for each of the coefficients in
B10: y = c0x8+ c1x7+ c2x6+ c3x5+ c4x4+ c5x3+ c6x2+ c7x+ c8
B11: (Use 0's if you don't want some of the terms)
A13: c0 = | B13: 2
A14: c1 = | B14: -1
A15: c2 = | B15: 5
A16: c3 = | B16: -6 | H16: ="The graph of y = " &TEXT(a0,"0.00") &"x^8+"&TEXT(b0,"0.00")&"x^7 + " &TEXT(c0,"0.00") &"x^6+"&TEXT(d0,"0.00")&"x^5 +"&TEXT(e0,"0.00")&"x^4 + " &TEXT(f0,"0.00") &"x^3+"&TEXT(g0,"0.00")&"x^2 +" &TEXT(h0,"0.00") &"x+"&TEXT(i0,"0.00") -> The graph of y = 2.00x^8+-1.00x^7 + 5.00x^6+-6.00x^5 +3.00x^4 + 0.00x^3+2.00x^2 +5.00x+-4.00
A17: c4 = | B17: 3
A18: c5 = | B18: 0
A19: c6 = | B19: 2 | I19: Select the point on the curve x0 = | M19: =xMin+L21*dx -> 0.21
A20: c7 = | B20: 5
A21: c8 = | B21: -4 | L21: 121
I24: The value of the function at x0 = | M24: =M19 -> 0.21
A25: Now enter the interval for x: | L25: is y = | M25: =LOOKUP(M24,Sheet2!A3:A203,Sheet2!B3:B203) -> -2.91680768
B26: xMin = | C26: -1
B27: xMax = | C27: 1
A32: Click each item below for suggestions and investigations
B33: Item 1
B34: Item 2
B35: Item 3
A42: Created by: Sheldon P. Gordon
A43: Farmingdale StateCollege
A44: Development of this module was supported by the
A45: NSF's Division of Undergraduate Education
A46: under grants DUE-0310123 and DUE-0442160.

Sheet Sheet2
A2: x | B2: y
A3: =xMin -> -1 | B3: =Sheet1!$B$13*A3^8+Sheet1!$B$14*A3^7+Sheet1!$B$15*A3^6+Sheet1!$B$16*A3^5+Sheet1!$B$17*A3^4+Sheet1!$B$18*A3^3+Sheet1!$B$19*A3^2+Sheet1!$B$20*A3+Sheet1!$B$21 -> 10 | E3: DeltaX= | F3: =(xMax - xMin)/200 -> 0.01
A4: =A3+dx -> -0.99 | B4: =Sheet1!$B$13*A4^8+Sheet1!$B$14*A4^7+Sheet1!$B$15*A4^6+Sheet1!$B$16*A4^5+Sheet1!$B$17*A4^4+Sheet1!$B$18*A4^3+Sheet1!$B$19*A4^2+Sheet1!$B$20*A4+Sheet1!$B$21 -> 9.082883813
A5: -0.98 | B5: =Sheet1!$B$13*A5^8+Sheet1!$B$14*A5^7+Sheet1!$B$15*A5^6+Sheet1!$B$16*A5^5+Sheet1!$B$17*A5^4+Sheet1!$B$18*A5^3+Sheet1!$B$19*A5^2+Sheet1!$B$20*A5+Sheet1!$B$21 -> 8.210292744
A6: -0.97 | B6: =Sheet1!$B$13*A6^8+Sheet1!$B$14*A6^7+Sheet1!$B$15*A6^6+Sheet1!$B$16*A6^5+Sheet1!$B$17*A6^4+Sheet1!$B$18*A6^3+Sheet1!$B$19*A6^2+Sheet1!$B$20*A6+Sheet1!$B$21 -> 7.380412173 | E6: Point
A7: -0.96 | B7: =Sheet1!$B$13*A7^8+Sheet1!$B$14*A7^7+Sheet1!$B$15*A7^6+Sheet1!$B$16*A7^5+Sheet1!$B$17*A7^4+Sheet1!$B$18*A7^3+Sheet1!$B$19*A7^2+Sheet1!$B$20*A7+Sheet1!$B$21 -> 6.59149145 | E7: =Sheet1!M24 -> 0.21 | F7: =Sheet1!M25 -> -2.91680768
A8: -0.95 | B8: =Sheet1!$B$13*A8^8+Sheet1!$B$14*A8^7+Sheet1!$B$15*A8^6+Sheet1!$B$16*A8^5+Sheet1!$B$17*A8^4+Sheet1!$B$18*A8^3+Sheet1!$B$19*A8^2+Sheet1!$B$20*A8+Sheet1!$B$21 -> 5.841841987
A9: -0.94 | B9: =Sheet1!$B$13*A9^8+Sheet1!$B$14*A9^7+Sheet1!$B$15*A9^6+Sheet1!$B$16*A9^5+Sheet1!$B$17*A9^4+Sheet1!$B$18*A9^3+Sheet1!$B$19*A9^2+Sheet1!$B$20*A9+Sheet1!$B$21 -> 5.129835391
A10: -0.93 | B10: =Sheet1!$B$13*A10^8+Sheet1!$B$14*A10^7+Sheet1!$B$15*A10^6+Sheet1!$B$16*A10^5+Sheet1!$B$17*A10^4+Sheet1!$B$18*A10^3+Sheet1!$B$19*A10^2+Sheet1!$B$20*A10+Sheet1!$B$21 -> 4.453901653
A11: -0.92 | B11: =Sheet1!$B$13*A11^8+Sheet1!$B$14*A11^7+Sheet1!$B$15*A11^6+Sheet1!$B$16*A11^5+Sheet1!$B$17*A11^4+Sheet1!$B$18*A11^3+Sheet1!$B$19*A11^2+Sheet1!$B$20*A11+Sheet1!$B$21 -> 3.812527373
A12: -0.91 | B12: =Sheet1!$B$13*A12^8+Sheet1!$B$14*A12^7+Sheet1!$B$15*A12^6+Sheet1!$B$16*A12^5+Sheet1!$B$17*A12^4+Sheet1!$B$18*A12^3+Sheet1!$B$19*A12^2+Sheet1!$B$20*A12+Sheet1!$B$21 -> 3.204254035
A13: -0.9 | B13: =Sheet1!$B$13*A13^8+Sheet1!$B$14*A13^7+Sheet1!$B$15*A13^6+Sheet1!$B$16*A13^5+Sheet1!$B$17*A13^4+Sheet1!$B$18*A13^3+Sheet1!$B$19*A13^2+Sheet1!$B$20*A13+Sheet1!$B$21 -> 2.62767632
A14: -0.89 | B14: =Sheet1!$B$13*A14^8+Sheet1!$B$14*A14^7+Sheet1!$B$15*A14^6+Sheet1!$B$16*A14^5+Sheet1!$B$17*A14^4+Sheet1!$B$18*A14^3+Sheet1!$B$19*A14^2+Sheet1!$B$20*A14+Sheet1!$B$21 -> 2.081440464
A15: -0.88 | B15: =Sheet1!$B$13*A15^8+Sheet1!$B$14*A15^7+Sheet1!$B$15*A15^6+Sheet1!$B$16*A15^5+Sheet1!$B$17*A15^4+Sheet1!$B$18*A15^3+Sheet1!$B$19*A15^2+Sheet1!$B$20*A15+Sheet1!$B$21 -> 1.564242661
A16: -0.87 | B16: =Sheet1!$B$13*A16^8+Sheet1!$B$14*A16^7+Sheet1!$B$15*A16^6+Sheet1!$B$16*A16^5+Sheet1!$B$17*A16^4+Sheet1!$B$18*A16^3+Sheet1!$B$19*A16^2+Sheet1!$B$20*A16+Sheet1!$B$21 -> 1.074827497
A17: -0.86 | B17: =Sheet1!$B$13*A17^8+Sheet1!$B$14*A17^7+Sheet1!$B$15*A17^6+Sheet1!$B$16*A17^5+Sheet1!$B$17*A17^4+Sheet1!$B$18*A17^3+Sheet1!$B$19*A17^2+Sheet1!$B$20*A17+Sheet1!$B$21 -> 0.6119864377
A18: -0.85 | B18: =Sheet1!$B$13*A18^8+Sheet1!$B$14*A18^7+Sheet1!$B$15*A18^6+Sheet1!$B$16*A18^5+Sheet1!$B$17*A18^4+Sheet1!$B$18*A18^3+Sheet1!$B$19*A18^2+Sheet1!$B$20*A18+Sheet1!$B$21 -> 0.1745563415
A19: -0.84 | B19: =Sheet1!$B$13*A19^8+Sheet1!$B$14*A19^7+Sheet1!$B$15*A19^6+Sheet1!$B$16*A19^5+Sheet1!$B$17*A19^4+Sheet1!$B$18*A19^3+Sheet1!$B$19*A19^2+Sheet1!$B$20*A19+Sheet1!$B$21 -> -0.2385819787
A20: -0.83 | B20: =Sheet1!$B$13*A20^8+Sheet1!$B$14*A20^7+Sheet1!$B$15*A20^6+Sheet1!$B$16*A20^5+Sheet1!$B$17*A20^4+Sheet1!$B$18*A20^3+Sheet1!$B$19*A20^2+Sheet1!$B$20*A20+Sheet1!$B$21 -> -0.628505161
A21: -0.82 | B21: =Sheet1!$B$13*A21^8+Sheet1!$B$14*A21^7+Sheet1!$B$15*A21^6+Sheet1!$B$16*A21^5+Sheet1!$B$17*A21^4+Sheet1!$B$18*A21^3+Sheet1!$B$19*A21^2+Sheet1!$B$20*A21+Sheet1!$B$21 -> -0.9962486614
A22: -0.81 | B22: =Sheet1!$B$13*A22^8+Sheet1!$B$14*A22^7+Sheet1!$B$15*A22^6+Sheet1!$B$16*A22^5+Sheet1!$B$17*A22^4+Sheet1!$B$18*A22^3+Sheet1!$B$19*A22^2+Sheet1!$B$20*A22+Sheet1!$B$21 -> -1.342808085
A23: -0.8 | B23: =Sheet1!$B$13*A23^8+Sheet1!$B$14*A23^7+Sheet1!$B$15*A23^6+Sheet1!$B$16*A23^5+Sheet1!$B$17*A23^4+Sheet1!$B$18*A23^3+Sheet1!$B$19*A23^2+Sheet1!$B$20*A23+Sheet1!$B$21 -> -1.66914048
A24: -0.79 | B24: =Sheet1!$B$13*A24^8+Sheet1!$B$14*A24^7+Sheet1!$B$15*A24^6+Sheet1!$B$16*A24^5+Sheet1!$B$17*A24^4+Sheet1!$B$18*A24^3+Sheet1!$B$19*A24^2+Sheet1!$B$20*A24+Sheet1!$B$21 -> -1.976165601
A25: -0.78 | B25: =Sheet1!$B$13*A25^8+Sheet1!$B$14*A25^7+Sheet1!$B$15*A25^6+Sheet1!$B$16*A25^5+Sheet1!$B$17*A25^4+Sheet1!$B$18*A25^3+Sheet1!$B$19*A25^2+Sheet1!$B$20*A25+Sheet1!$B$21 -> -2.264767133
A26: -0.77 | B26: =Sheet1!$B$13*A26^8+Sheet1!$B$14*A26^7+Sheet1!$B$15*A26^6+Sheet1!$B$16*A26^5+Sheet1!$B$17*A26^4+Sheet1!$B$18*A26^3+Sheet1!$B$19*A26^2+Sheet1!$B$20*A26+Sheet1!$B$21 -> -2.535793884
A27: -0.76 | B27: =Sheet1!$B$13*A27^8+Sheet1!$B$14*A27^7+Sheet1!$B$15*A27^6+Sheet1!$B$16*A27^5+Sheet1!$B$17*A27^4+Sheet1!$B$18*A27^3+Sheet1!$B$19*A27^2+Sheet1!$B$20*A27+Sheet1!$B$21 -> -2.790060948
A28: -0.75 | B28: =Sheet1!$B$13*A28^8+Sheet1!$B$14*A28^7+Sheet1!$B$15*A28^6+Sheet1!$B$16*A28^5+Sheet1!$B$17*A28^4+Sheet1!$B$18*A28^3+Sheet1!$B$19*A28^2+Sheet1!$B$20*A28+Sheet1!$B$21 -> -3.02835083
A29: -0.74 | B29: =Sheet1!$B$13*A29^8+Sheet1!$B$14*A29^7+Sheet1!$B$15*A29^6+Sheet1!$B$16*A29^5+Sheet1!$B$17*A29^4+Sheet1!$B$18*A29^3+Sheet1!$B$19*A29^2+Sheet1!$B$20*A29+Sheet1!$B$21 -> -3.251414544
A30: -0.73 | B30: =Sheet1!$B$13*A30^8+Sheet1!$B$14*A30^7+Sheet1!$B$15*A30^6+Sheet1!$B$16*A30^5+Sheet1!$B$17*A30^4+Sheet1!$B$18*A30^3+Sheet1!$B$19*A30^2+Sheet1!$B$20*A30+Sheet1!$B$21 -> -3.459972679
A31: -0.72 | B31: =Sheet1!$B$13*A31^8+Sheet1!$B$14*A31^7+Sheet1!$B$15*A31^6+Sheet1!$B$16*A31^5+Sheet1!$B$17*A31^4+Sheet1!$B$18*A31^3+Sheet1!$B$19*A31^2+Sheet1!$B$20*A31+Sheet1!$B$21 -> -3.654716436
A32: -0.71 | B32: =Sheet1!$B$13*A32^8+Sheet1!$B$14*A32^7+Sheet1!$B$15*A32^6+Sheet1!$B$16*A32^5+Sheet1!$B$17*A32^4+Sheet1!$B$18*A32^3+Sheet1!$B$19*A32^2+Sheet1!$B$20*A32+Sheet1!$B$21 -> -3.836308632
A33: -0.7 | B33: =Sheet1!$B$13*A33^8+Sheet1!$B$14*A33^7+Sheet1!$B$15*A33^6+Sheet1!$B$16*A33^5+Sheet1!$B$17*A33^4+Sheet1!$B$18*A33^3+Sheet1!$B$19*A33^2+Sheet1!$B$20*A33+Sheet1!$B$21 -> -4.00538468
A34: -0.69 | B34: =Sheet1!$B$13*A34^8+Sheet1!$B$14*A34^7+Sheet1!$B$15*A34^6+Sheet1!$B$16*A34^5+Sheet1!$B$17*A34^4+Sheet1!$B$18*A34^3+Sheet1!$B$19*A34^2+Sheet1!$B$20*A34+Sheet1!$B$21 -> -4.162553538
A35: -0.68 | B35: =Sheet1!$B$13*A35^8+Sheet1!$B$14*A35^7+Sheet1!$B$15*A35^6+Sheet1!$B$16*A35^5+Sheet1!$B$17*A35^4+Sheet1!$B$18*A35^3+Sheet1!$B$19*A35^2+Sheet1!$B$20*A35+Sheet1!$B$21 -> -4.30839863
A36: -0.67 | B36: =Sheet1!$B$13*A36^8+Sheet1!$B$14*A36^7+Sheet1!$B$15*A36^6+Sheet1!$B$16*A36^5+Sheet1!$B$17*A36^4+Sheet1!$B$18*A36^3+Sheet1!$B$19*A36^2+Sheet1!$B$20*A36+Sheet1!$B$21 -> -4.443478743
A37: -0.66 | B37: =Sheet1!$B$13*A37^8+Sheet1!$B$14*A37^7+Sheet1!$B$15*A37^6+Sheet1!$B$16*A37^5+Sheet1!$B$17*A37^4+Sheet1!$B$18*A37^3+Sheet1!$B$19*A37^2+Sheet1!$B$20*A37+Sheet1!$B$21 -> -4.568328896
A38: -0.65 | B38: =Sheet1!$B$13*A38^8+Sheet1!$B$14*A38^7+Sheet1!$B$15*A38^6+Sheet1!$B$16*A38^5+Sheet1!$B$17*A38^4+Sheet1!$B$18*A38^3+Sheet1!$B$19*A38^2+Sheet1!$B$20*A38+Sheet1!$B$21 -> -4.68346118
A39: -0.64 | B39: =Sheet1!$B$13*A39^8+Sheet1!$B$14*A39^7+Sheet1!$B$15*A39^6+Sheet1!$B$16*A39^5+Sheet1!$B$17*A39^4+Sheet1!$B$18*A39^3+Sheet1!$B$19*A39^2+Sheet1!$B$20*A39+Sheet1!$B$21 -> -4.789365581
A40: -0.63 | B40: =Sheet1!$B$13*A40^8+Sheet1!$B$14*A40^7+Sheet1!$B$15*A40^6+Sheet1!$B$16*A40^5+Sheet1!$B$17*A40^4+Sheet1!$B$18*A40^3+Sheet1!$B$19*A40^2+Sheet1!$B$20*A40+Sheet1!$B$21 -> -4.886510771
A41: -0.62 | B41: =Sheet1!$B$13*A41^8+Sheet1!$B$14*A41^7+Sheet1!$B$15*A41^6+Sheet1!$B$16*A41^5+Sheet1!$B$17*A41^4+Sheet1!$B$18*A41^3+Sheet1!$B$19*A41^2+Sheet1!$B$20*A41+Sheet1!$B$21 -> -4.975344876
A42: -0.61 | B42: =Sheet1!$B$13*A42^8+Sheet1!$B$14*A42^7+Sheet1!$B$15*A42^6+Sheet1!$B$16*A42^5+Sheet1!$B$17*A42^4+Sheet1!$B$18*A42^3+Sheet1!$B$19*A42^2+Sheet1!$B$20*A42+Sheet1!$B$21 -> -5.056296227
A43: -0.6 | B43: =Sheet1!$B$13*A43^8+Sheet1!$B$14*A43^7+Sheet1!$B$15*A43^6+Sheet1!$B$16*A43^5+Sheet1!$B$17*A43^4+Sheet1!$B$18*A43^3+Sheet1!$B$19*A43^2+Sheet1!$B$20*A43+Sheet1!$B$21 -> -5.12977408
A44: -0.59 | B44: =Sheet1!$B$13*A44^8+Sheet1!$B$14*A44^7+Sheet1!$B$15*A44^6+Sheet1!$B$16*A44^5+Sheet1!$B$17*A44^4+Sheet1!$B$18*A44^3+Sheet1!$B$19*A44^2+Sheet1!$B$20*A44+Sheet1!$B$21 -> -5.19616932
A45: -0.58 | B45: =Sheet1!$B$13*A45^8+Sheet1!$B$14*A45^7+Sheet1!$B$15*A45^6+Sheet1!$B$16*A45^5+Sheet1!$B$17*A45^4+Sheet1!$B$18*A45^3+Sheet1!$B$19*A45^2+Sheet1!$B$20*A45+Sheet1!$B$21 -> -5.255855138
A46: -0.57 | B46: =Sheet1!$B$13*A46^8+Sheet1!$B$14*A46^7+Sheet1!$B$15*A46^6+Sheet1!$B$16*A46^5+Sheet1!$B$17*A46^4+Sheet1!$B$18*A46^3+Sheet1!$B$19*A46^2+Sheet1!$B$20*A46+Sheet1!$B$21 -> -5.309187693
A47: -0.56 | B47: =Sheet1!$B$13*A47^8+Sheet1!$B$14*A47^7+Sheet1!$B$15*A47^6+Sheet1!$B$16*A47^5+Sheet1!$B$17*A47^4+Sheet1!$B$18*A47^3+Sheet1!$B$19*A47^2+Sheet1!$B$20*A47+Sheet1!$B$21 -> -5.356506746
A48: -0.55 | B48: =Sheet1!$B$13*A48^8+Sheet1!$B$14*A48^7+Sheet1!$B$15*A48^6+Sheet1!$B$16*A48^5+Sheet1!$B$17*A48^4+Sheet1!$B$18*A48^3+Sheet1!$B$19*A48^2+Sheet1!$B$20*A48+Sheet1!$B$21 -> -5.398136282
A49: -0.54 | B49: =Sheet1!$B$13*A49^8+Sheet1!$B$14*A49^7+Sheet1!$B$15*A49^6+Sheet1!$B$16*A49^5+Sheet1!$B$17*A49^4+Sheet1!$B$18*A49^3+Sheet1!$B$19*A49^2+Sheet1!$B$20*A49+Sheet1!$B$21 -> -5.434385105
A50: -0.53 | B50: =Sheet1!$B$13*A50^8+Sheet1!$B$14*A50^7+Sheet1!$B$15*A50^6+Sheet1!$B$16*A50^5+Sheet1!$B$17*A50^4+Sheet1!$B$18*A50^3+Sheet1!$B$19*A50^2+Sheet1!$B$20*A50+Sheet1!$B$21 -> -5.465547419
A51: -0.52 | B51: =Sheet1!$B$13*A51^8+Sheet1!$B$14*A51^7+Sheet1!$B$15*A51^6+Sheet1!$B$16*A51^5+Sheet1!$B$17*A51^4+Sheet1!$B$18*A51^3+Sheet1!$B$19*A51^2+Sheet1!$B$20*A51+Sheet1!$B$21 -> -5.49190339
A52: -0.51 | B52: =Sheet1!$B$13*A52^8+Sheet1!$B$14*A52^7+Sheet1!$B$15*A52^6+Sheet1!$B$16*A52^5+Sheet1!$B$17*A52^4+Sheet1!$B$18*A52^3+Sheet1!$B$19*A52^2+Sheet1!$B$20*A52+Sheet1!$B$21 -> -5.513719685
A53: -0.5 | B53: =Sheet1!$B$13*A53^8+Sheet1!$B$14*A53^7+Sheet1!$B$15*A53^6+Sheet1!$B$16*A53^5+Sheet1!$B$17*A53^4+Sheet1!$B$18*A53^3+Sheet1!$B$19*A53^2+Sheet1!$B$20*A53+Sheet1!$B$21 -> -5.53125
A54: -0.49 | B54: =Sheet1!$B$13*A54^8+Sheet1!$B$14*A54^7+Sheet1!$B$15*A54^6+Sheet1!$B$16*A54^5+Sheet1!$B$17*A54^4+Sheet1!$B$18*A54^3+Sheet1!$B$19*A54^2+Sheet1!$B$20*A54+Sheet1!$B$21 -> -5.544735568
A55: -0.48 | B55: =Sheet1!$B$13*A55^8+Sheet1!$B$14*A55^7+Sheet1!$B$15*A55^6+Sheet1!$B$16*A55^5+Sheet1!$B$17*A55^4+Sheet1!$B$18*A55^3+Sheet1!$B$19*A55^2+Sheet1!$B$20*A55+Sheet1!$B$21 -> -5.554405647
A56: -0.47 | B56: =Sheet1!$B$13*A56^8+Sheet1!$B$14*A56^7+Sheet1!$B$15*A56^6+Sheet1!$B$16*A56^5+Sheet1!$B$17*A56^4+Sheet1!$B$18*A56^3+Sheet1!$B$19*A56^2+Sheet1!$B$20*A56+Sheet1!$B$21 -> -5.560478001
A57: -0.46 | B57: =Sheet1!$B$13*A57^8+Sheet1!$B$14*A57^7+Sheet1!$B$15*A57^6+Sheet1!$B$16*A57^5+Sheet1!$B$17*A57^4+Sheet1!$B$18*A57^3+Sheet1!$B$19*A57^2+Sheet1!$B$20*A57+Sheet1!$B$21 -> -5.563159351
A58: -0.45 | B58: =Sheet1!$B$13*A58^8+Sheet1!$B$14*A58^7+Sheet1!$B$15*A58^6+Sheet1!$B$16*A58^5+Sheet1!$B$17*A58^4+Sheet1!$B$18*A58^3+Sheet1!$B$19*A58^2+Sheet1!$B$20*A58+Sheet1!$B$21 -> -5.562645827
A59: -0.44 | B59: =Sheet1!$B$13*A59^8+Sheet1!$B$14*A59^7+Sheet1!$B$15*A59^6+Sheet1!$B$16*A59^5+Sheet1!$B$17*A59^4+Sheet1!$B$18*A59^3+Sheet1!$B$19*A59^2+Sheet1!$B$20*A59+Sheet1!$B$21 -> -5.559123393
A60: -0.43 | B60: =Sheet1!$B$13*A60^8+Sheet1!$B$14*A60^7+Sheet1!$B$15*A60^6+Sheet1!$B$16*A60^5+Sheet1!$B$17*A60^4+Sheet1!$B$18*A60^3+Sheet1!$B$19*A60^2+Sheet1!$B$20*A60+Sheet1!$B$21 -> -5.552768263
A61: -0.42 | B61: =Sheet1!$B$13*A61^8+Sheet1!$B$14*A61^7+Sheet1!$B$15*A61^6+Sheet1!$B$16*A61^5+Sheet1!$B$17*A61^4+Sheet1!$B$18*A61^3+Sheet1!$B$19*A61^2+Sheet1!$B$20*A61+Sheet1!$B$21 -> -5.543747298
A62: -0.41 | B62: =Sheet1!$B$13*A62^8+Sheet1!$B$14*A62^7+Sheet1!$B$15*A62^6+Sheet1!$B$16*A62^5+Sheet1!$B$17*A62^4+Sheet1!$B$18*A62^3+Sheet1!$B$19*A62^2+Sheet1!$B$20*A62+Sheet1!$B$21 -> -5.5322184
A63: -0.4 | B63: =Sheet1!$B$13*A63^8+Sheet1!$B$14*A63^7+Sheet1!$B$15*A63^6+Sheet1!$B$16*A63^5+Sheet1!$B$17*A63^4+Sheet1!$B$18*A63^3+Sheet1!$B$19*A63^2+Sheet1!$B$20*A63+Sheet1!$B$21 -> -5.51833088
A64: -0.39 | B64: =Sheet1!$B$13*A64^8+Sheet1!$B$14*A64^7+Sheet1!$B$15*A64^6+Sheet1!$B$16*A64^5+Sheet1!$B$17*A64^4+Sheet1!$B$18*A64^3+Sheet1!$B$19*A64^2+Sheet1!$B$20*A64+Sheet1!$B$21 -> -5.50222582
A65: -0.38 | B65: =Sheet1!$B$13*A65^8+Sheet1!$B$14*A65^7+Sheet1!$B$15*A65^6+Sheet1!$B$16*A65^5+Sheet1!$B$17*A65^4+Sheet1!$B$18*A65^3+Sheet1!$B$19*A65^2+Sheet1!$B$20*A65+Sheet1!$B$21 -> -5.484036423
A66: -0.37 | B66: =Sheet1!$B$13*A66^8+Sheet1!$B$14*A66^7+Sheet1!$B$15*A66^6+Sheet1!$B$16*A66^5+Sheet1!$B$17*A66^4+Sheet1!$B$18*A66^3+Sheet1!$B$19*A66^2+Sheet1!$B$20*A66+Sheet1!$B$21 -> -5.463888349
A67: -0.36 | B67: =Sheet1!$B$13*A67^8+Sheet1!$B$14*A67^7+Sheet1!$B$15*A67^6+Sheet1!$B$16*A67^5+Sheet1!$B$17*A67^4+Sheet1!$B$18*A67^3+Sheet1!$B$19*A67^2+Sheet1!$B$20*A67+Sheet1!$B$21 -> -5.441900039
A68: =A67+dx -> -0.35 | B68: =Sheet1!$B$13*A68^8+Sheet1!$B$14*A68^7+Sheet1!$B$15*A68^6+Sheet1!$B$16*A68^5+Sheet1!$B$17*A68^4+Sheet1!$B$18*A68^3+Sheet1!$B$19*A68^2+Sheet1!$B$20*A68+Sheet1!$B$21 -> -5.418183029
A69: -0.34 | B69: =Sheet1!$B$13*A69^8+Sheet1!$B$14*A69^7+Sheet1!$B$15*A69^6+Sheet1!$B$16*A69^5+Sheet1!$B$17*A69^4+Sheet1!$B$18*A69^3+Sheet1!$B$19*A69^2+Sheet1!$B$20*A69+Sheet1!$B$21 -> -5.392842251
A70: -0.33 | B70: =Sheet1!$B$13*A70^8+Sheet1!$B$14*A70^7+Sheet1!$B$15*A70^6+Sheet1!$B$16*A70^5+Sheet1!$B$17*A70^4+Sheet1!$B$18*A70^3+Sheet1!$B$19*A70^2+Sheet1!$B$20*A70+Sheet1!$B$21 -> -5.365976328
A71: -0.32 | B71: =Sheet1!$B$13*A71^8+Sheet1!$B$14*A71^7+Sheet1!$B$15*A71^6+Sheet1!$B$16*A71^5+Sheet1!$B$17*A71^4+Sheet1!$B$18*A71^3+Sheet1!$B$19*A71^2+Sheet1!$B$20*A71+Sheet1!$B$21 -> -5.337677852
A72: -0.31 | B72: =Sheet1!$B$13*A72^8+Sheet1!$B$14*A72^7+Sheet1!$B$15*A72^6+Sheet1!$B$16*A72^5+Sheet1!$B$17*A72^4+Sheet1!$B$18*A72^3+Sheet1!$B$19*A72^2+Sheet1!$B$20*A72+Sheet1!$B$21 -> -5.308033657
A73: -0.3 | B73: =Sheet1!$B$13*A73^8+Sheet1!$B$14*A73^7+Sheet1!$B$15*A73^6+Sheet1!$B$16*A73^5+Sheet1!$B$17*A73^4+Sheet1!$B$18*A73^3+Sheet1!$B$19*A73^2+Sheet1!$B$20*A73+Sheet1!$B$21 -> -5.27712508
A74: -0.29 | B74: =Sheet1!$B$13*A74^8+Sheet1!$B$14*A74^7+Sheet1!$B$15*A74^6+Sheet1!$B$16*A74^5+Sheet1!$B$17*A74^4+Sheet1!$B$18*A74^3+Sheet1!$B$19*A74^2+Sheet1!$B$20*A74+Sheet1!$B$21 -> -5.245028216
A75: -0.28 | B75: =Sheet1!$B$13*A75^8+Sheet1!$B$14*A75^7+Sheet1!$B$15*A75^6+Sheet1!$B$16*A75^5+Sheet1!$B$17*A75^4+Sheet1!$B$18*A75^3+Sheet1!$B$19*A75^2+Sheet1!$B$20*A75+Sheet1!$B$21 -> -5.211814158
A76: -0.27 | B76: =Sheet1!$B$13*A76^8+Sheet1!$B$14*A76^7+Sheet1!$B$15*A76^6+Sheet1!$B$16*A76^5+Sheet1!$B$17*A76^4+Sheet1!$B$18*A76^3+Sheet1!$B$19*A76^2+Sheet1!$B$20*A76+Sheet1!$B$21 -> -5.177549234
A77: -0.26 | B77: =Sheet1!$B$13*A77^8+Sheet1!$B$14*A77^7+Sheet1!$B$15*A77^6+Sheet1!$B$16*A77^5+Sheet1!$B$17*A77^4+Sheet1!$B$18*A77^3+Sheet1!$B$19*A77^2+Sheet1!$B$20*A77+Sheet1!$B$21 -> -5.142295232
A78: -0.25 | B78: =Sheet1!$B$13*A78^8+Sheet1!$B$14*A78^7+Sheet1!$B$15*A78^6+Sheet1!$B$16*A78^5+Sheet1!$B$17*A78^4+Sheet1!$B$18*A78^3+Sheet1!$B$19*A78^2+Sheet1!$B$20*A78+Sheet1!$B$21 -> -5.106109619
A79: -0.24 | B79: =Sheet1!$B$13*A79^8+Sheet1!$B$14*A79^7+Sheet1!$B$15*A79^6+Sheet1!$B$16*A79^5+Sheet1!$B$17*A79^4+Sheet1!$B$18*A79^3+Sheet1!$B$19*A79^2+Sheet1!$B$20*A79+Sheet1!$B$21 -> -5.069045751
A80: -0.23 | B80: =Sheet1!$B$13*A80^8+Sheet1!$B$14*A80^7+Sheet1!$B$15*A80^6+Sheet1!$B$16*A80^5+Sheet1!$B$17*A80^4+Sheet1!$B$18*A80^3+Sheet1!$B$19*A80^2+Sheet1!$B$20*A80+Sheet1!$B$21 -> -5.031153074
A81: -0.22 | B81: =Sheet1!$B$13*A81^8+Sheet1!$B$14*A81^7+Sheet1!$B$15*A81^6+Sheet1!$B$16*A81^5+Sheet1!$B$17*A81^4+Sheet1!$B$18*A81^3+Sheet1!$B$19*A81^2+Sheet1!$B$20*A81+Sheet1!$B$21 -> -4.992477323
A82: -0.21 | B82: =Sheet1!$B$13*A82^8+Sheet1!$B$14*A82^7+Sheet1!$B$15*A82^6+Sheet1!$B$16*A82^5+Sheet1!$B$17*A82^4+Sheet1!$B$18*A82^3+Sheet1!$B$19*A82^2+Sheet1!$B$20*A82+Sheet1!$B$21 -> -4.953060703
A83: -0.2 | B83: =Sheet1!$B$13*A83^8+Sheet1!$B$14*A83^7+Sheet1!$B$15*A83^6+Sheet1!$B$16*A83^5+Sheet1!$B$17*A83^4+Sheet1!$B$18*A83^3+Sheet1!$B$19*A83^2+Sheet1!$B$20*A83+Sheet1!$B$21 -> -4.91294208
A84: -0.19 | B84: =Sheet1!$B$13*A84^8+Sheet1!$B$14*A84^7+Sheet1!$B$15*A84^6+Sheet1!$B$16*A84^5+Sheet1!$B$17*A84^4+Sheet1!$B$18*A84^3+Sheet1!$B$19*A84^2+Sheet1!$B$20*A84+Sheet1!$B$21 -> -4.872157146
A85: -0.18 | B85: =Sheet1!$B$13*A85^8+Sheet1!$B$14*A85^7+Sheet1!$B$15*A85^6+Sheet1!$B$16*A85^5+Sheet1!$B$17*A85^4+Sheet1!$B$18*A85^3+Sheet1!$B$19*A85^2+Sheet1!$B$20*A85+Sheet1!$B$21 -> -4.830738592
A86: -0.17 | B86: =Sheet1!$B$13*A86^8+Sheet1!$B$14*A86^7+Sheet1!$B$15*A86^6+Sheet1!$B$16*A86^5+Sheet1!$B$17*A86^4+Sheet1!$B$18*A86^3+Sheet1!$B$19*A86^2+Sheet1!$B$20*A86+Sheet1!$B$21 -> -4.788716269
A87: -0.16 | B87: =Sheet1!$B$13*A87^8+Sheet1!$B$14*A87^7+Sheet1!$B$15*A87^6+Sheet1!$B$16*A87^5+Sheet1!$B$17*A87^4+Sheet1!$B$18*A87^3+Sheet1!$B$19*A87^2+Sheet1!$B$20*A87+Sheet1!$B$21 -> -4.746117345
A88: -0.15 | B88: =Sheet1!$B$13*A88^8+Sheet1!$B$14*A88^7+Sheet1!$B$15*A88^6+Sheet1!$B$16*A88^5+Sheet1!$B$17*A88^4+Sheet1!$B$18*A88^3+Sheet1!$B$19*A88^2+Sheet1!$B$20*A88+Sheet1!$B$21 -> -4.702966451
A89: -0.14 | B89: =Sheet1!$B$13*A89^8+Sheet1!$B$14*A89^7+Sheet1!$B$15*A89^6+Sheet1!$B$16*A89^5+Sheet1!$B$17*A89^4+Sheet1!$B$18*A89^3+Sheet1!$B$19*A89^2+Sheet1!$B$20*A89+Sheet1!$B$21 -> -4.659285829
A90: -0.13 | B90: =Sheet1!$B$13*A90^8+Sheet1!$B$14*A90^7+Sheet1!$B$15*A90^6+Sheet1!$B$16*A90^5+Sheet1!$B$17*A90^4+Sheet1!$B$18*A90^3+Sheet1!$B$19*A90^2+Sheet1!$B$20*A90+Sheet1!$B$21 -> -4.61509547
A91: -0.12 | B91: =Sheet1!$B$13*A91^8+Sheet1!$B$14*A91^7+Sheet1!$B$15*A91^6+Sheet1!$B$16*A91^5+Sheet1!$B$17*A91^4+Sheet1!$B$18*A91^3+Sheet1!$B$19*A91^2+Sheet1!$B$20*A91+Sheet1!$B$21 -> -4.570413247
A92: -0.11 | B92: =Sheet1!$B$13*A92^8+Sheet1!$B$14*A92^7+Sheet1!$B$15*A92^6+Sheet1!$B$16*A92^5+Sheet1!$B$17*A92^4+Sheet1!$B$18*A92^3+Sheet1!$B$19*A92^2+Sheet1!$B$20*A92+Sheet1!$B$21 -> -4.525255044
A93: -0.1 | B93: =Sheet1!$B$13*A93^8+Sheet1!$B$14*A93^7+Sheet1!$B$15*A93^6+Sheet1!$B$16*A93^5+Sheet1!$B$17*A93^4+Sheet1!$B$18*A93^3+Sheet1!$B$19*A93^2+Sheet1!$B$20*A93+Sheet1!$B$21 -> -4.47963488
A94: -0.09 | B94: =Sheet1!$B$13*A94^8+Sheet1!$B$14*A94^7+Sheet1!$B$15*A94^6+Sheet1!$B$16*A94^5+Sheet1!$B$17*A94^4+Sheet1!$B$18*A94^3+Sheet1!$B$19*A94^2+Sheet1!$B$20*A94+Sheet1!$B$21 -> -4.433565027
A95: -0.08 | B95: =Sheet1!$B$13*A95^8+Sheet1!$B$14*A95^7+Sheet1!$B$15*A95^6+Sheet1!$B$16*A95^5+Sheet1!$B$17*A95^4+Sheet1!$B$18*A95^3+Sheet1!$B$19*A95^2+Sheet1!$B$20*A95+Sheet1!$B$21 -> -4.387056124
A96: -0.07 | B96: =Sheet1!$B$13*A96^8+Sheet1!$B$14*A96^7+Sheet1!$B$15*A96^6+Sheet1!$B$16*A96^5+Sheet1!$B$17*A96^4+Sheet1!$B$18*A96^3+Sheet1!$B$19*A96^2+Sheet1!$B$20*A96+Sheet1!$B$21 -> -4.340117288
A97: -0.06 | B97: =Sheet1!$B$13*A97^8+Sheet1!$B$14*A97^7+Sheet1!$B$15*A97^6+Sheet1!$B$16*A97^5+Sheet1!$B$17*A97^4+Sheet1!$B$18*A97^3+Sheet1!$B$19*A97^2+Sheet1!$B$20*A97+Sheet1!$B$21 -> -4.292756218
A98: -0.05 | B98: =Sheet1!$B$13*A98^8+Sheet1!$B$14*A98^7+Sheet1!$B$15*A98^6+Sheet1!$B$16*A98^5+Sheet1!$B$17*A98^4+Sheet1!$B$18*A98^3+Sheet1!$B$19*A98^2+Sheet1!$B$20*A98+Sheet1!$B$21 -> -4.244979296
A99: -0.04 | B99: =Sheet1!$B$13*A99^8+Sheet1!$B$14*A99^7+Sheet1!$B$15*A99^6+Sheet1!$B$16*A99^5+Sheet1!$B$17*A99^4+Sheet1!$B$18*A99^3+Sheet1!$B$19*A99^2+Sheet1!$B$20*A99+Sheet1!$B$21 -> -4.196791685
A100: -0.03 | B100: =Sheet1!$B$13*A100^8+Sheet1!$B$14*A100^7+Sheet1!$B$15*A100^6+Sheet1!$B$16*A100^5+Sheet1!$B$17*A100^4+Sheet1!$B$18*A100^3+Sheet1!$B$19*A100^2+Sheet1!$B$20*A100+Sheet1!$B$21 -> -4.148197421
A101: -0.02 | B101: =Sheet1!$B$13*A101^8+Sheet1!$B$14*A101^7+Sheet1!$B$15*A101^6+Sheet1!$B$16*A101^5+Sheet1!$B$17*A101^4+Sheet1!$B$18*A101^3+Sheet1!$B$19*A101^2+Sheet1!$B$20*A101+Sheet1!$B$21 -> -4.0991995
A102: -0.01 | B102: =Sheet1!$B$13*A102^8+Sheet1!$B$14*A102^7+Sheet1!$B$15*A102^6+Sheet1!$B$16*A102^5+Sheet1!$B$17*A102^4+Sheet1!$B$18*A102^3+Sheet1!$B$19*A102^2+Sheet1!$B$20*A102+Sheet1!$B$21 -> -4.049799969
A103: 7.528699886e-16 | B103: =Sheet1!$B$13*A103^8+Sheet1!$B$14*A103^7+Sheet1!$B$15*A103^6+Sheet1!$B$16*A103^5+Sheet1!$B$17*A103^4+Sheet1!$B$18*A103^3+Sheet1!$B$19*A103^2+Sheet1!$B$20*A103+Sheet1!$B$21 -> -4
A104: 0.01 | B104: =Sheet1!$B$13*A104^8+Sheet1!$B$14*A104^7+Sheet1!$B$15*A104^6+Sheet1!$B$16*A104^5+Sheet1!$B$17*A104^4+Sheet1!$B$18*A104^3+Sheet1!$B$19*A104^2+Sheet1!$B$20*A104+Sheet1!$B$21 -> -3.949799971
A105: 0.02 | B105: =Sheet1!$B$13*A105^8+Sheet1!$B$14*A105^7+Sheet1!$B$15*A105^6+Sheet1!$B$16*A105^5+Sheet1!$B$17*A105^4+Sheet1!$B$18*A105^3+Sheet1!$B$19*A105^2+Sheet1!$B$20*A105+Sheet1!$B$21 -> -3.899199539
A106: 0.03 | B106: =Sheet1!$B$13*A106^8+Sheet1!$B$14*A106^7+Sheet1!$B$15*A106^6+Sheet1!$B$16*A106^5+Sheet1!$B$17*A106^4+Sheet1!$B$18*A106^3+Sheet1!$B$19*A106^2+Sheet1!$B$20*A106+Sheet1!$B$21 -> -3.848197712
A107: 0.04 | B107: =Sheet1!$B$13*A107^8+Sheet1!$B$14*A107^7+Sheet1!$B$15*A107^6+Sheet1!$B$16*A107^5+Sheet1!$B$17*A107^4+Sheet1!$B$18*A107^3+Sheet1!$B$19*A107^2+Sheet1!$B$20*A107+Sheet1!$B$21 -> -3.796792914
A108: 0.05 | B108: =Sheet1!$B$13*A108^8+Sheet1!$B$14*A108^7+Sheet1!$B$15*A108^6+Sheet1!$B$16*A108^5+Sheet1!$B$17*A108^4+Sheet1!$B$18*A108^3+Sheet1!$B$19*A108^2+Sheet1!$B$20*A108+Sheet1!$B$21 -> -3.744983048
A109: 0.06 | B109: =Sheet1!$B$13*A109^8+Sheet1!$B$14*A109^7+Sheet1!$B$15*A109^6+Sheet1!$B$16*A109^5+Sheet1!$B$17*A109^4+Sheet1!$B$18*A109^3+Sheet1!$B$19*A109^2+Sheet1!$B$20*A109+Sheet1!$B$21 -> -3.692765555
A110: 0.07 | B110: =Sheet1!$B$13*A110^8+Sheet1!$B$14*A110^7+Sheet1!$B$15*A110^6+Sheet1!$B$16*A110^5+Sheet1!$B$17*A110^4+Sheet1!$B$18*A110^3+Sheet1!$B$19*A110^2+Sheet1!$B$20*A110+Sheet1!$B$21 -> -3.640137473
A111: 0.08 | B111: =Sheet1!$B$13*A111^8+Sheet1!$B$14*A111^7+Sheet1!$B$15*A111^6+Sheet1!$B$16*A111^5+Sheet1!$B$17*A111^4+Sheet1!$B$18*A111^3+Sheet1!$B$19*A111^2+Sheet1!$B$20*A111+Sheet1!$B$21 -> -3.587095488
A112: 0.09 | B112: =Sheet1!$B$13*A112^8+Sheet1!$B$14*A112^7+Sheet1!$B$15*A112^6+Sheet1!$B$16*A112^5+Sheet1!$B$17*A112^4+Sheet1!$B$18*A112^3+Sheet1!$B$19*A112^2+Sheet1!$B$20*A112+Sheet1!$B$21 -> -3.533635981
A113: 0.1 | B113: =Sheet1!$B$13*A113^8+Sheet1!$B$14*A113^7+Sheet1!$B$15*A113^6+Sheet1!$B$16*A113^5+Sheet1!$B$17*A113^4+Sheet1!$B$18*A113^3+Sheet1!$B$19*A113^2+Sheet1!$B$20*A113+Sheet1!$B$21 -> -3.47975508
A114: 0.11 | B114: =Sheet1!$B$13*A114^8+Sheet1!$B$14*A114^7+Sheet1!$B$15*A114^6+Sheet1!$B$16*A114^5+Sheet1!$B$17*A114^4+Sheet1!$B$18*A114^3+Sheet1!$B$19*A114^2+Sheet1!$B$20*A114+Sheet1!$B$21 -> -3.425448695
A115: 0.12 | B115: =Sheet1!$B$13*A115^8+Sheet1!$B$14*A115^7+Sheet1!$B$15*A115^6+Sheet1!$B$16*A115^5+Sheet1!$B$17*A115^4+Sheet1!$B$18*A115^3+Sheet1!$B$19*A115^2+Sheet1!$B$20*A115+Sheet1!$B$21 -> -3.370712562
A116: 0.13 | B116: =Sheet1!$B$13*A116^8+Sheet1!$B$14*A116^7+Sheet1!$B$15*A116^6+Sheet1!$B$16*A116^5+Sheet1!$B$17*A116^4+Sheet1!$B$18*A116^3+Sheet1!$B$19*A116^2+Sheet1!$B$20*A116+Sheet1!$B$21 -> -3.315542276
A117: 0.14 | B117: =Sheet1!$B$13*A117^8+Sheet1!$B$14*A117^7+Sheet1!$B$15*A117^6+Sheet1!$B$16*A117^5+Sheet1!$B$17*A117^4+Sheet1!$B$18*A117^3+Sheet1!$B$19*A117^2+Sheet1!$B$20*A117+Sheet1!$B$21 -> -3.259933326
A118: 0.15 | B118: =Sheet1!$B$13*A118^8+Sheet1!$B$14*A118^7+Sheet1!$B$15*A118^6+Sheet1!$B$16*A118^5+Sheet1!$B$17*A118^4+Sheet1!$B$18*A118^3+Sheet1!$B$19*A118^2+Sheet1!$B$20*A118+Sheet1!$B$21 -> -3.203881118
A119: 0.16 | B119: =Sheet1!$B$13*A119^8+Sheet1!$B$14*A119^7+Sheet1!$B$15*A119^6+Sheet1!$B$16*A119^5+Sheet1!$B$17*A119^4+Sheet1!$B$18*A119^3+Sheet1!$B$19*A119^2+Sheet1!$B$20*A119+Sheet1!$B$21 -> -3.147381005
A120: 0.17 | B120: =Sheet1!$B$13*A120^8+Sheet1!$B$14*A120^7+Sheet1!$B$15*A120^6+Sheet1!$B$16*A120^5+Sheet1!$B$17*A120^4+Sheet1!$B$18*A120^3+Sheet1!$B$19*A120^2+Sheet1!$B$20*A120+Sheet1!$B$21 -> -3.090428305
A121: 0.18 | B121: =Sheet1!$B$13*A121^8+Sheet1!$B$14*A121^7+Sheet1!$B$15*A121^6+Sheet1!$B$16*A121^5+Sheet1!$B$17*A121^4+Sheet1!$B$18*A121^3+Sheet1!$B$19*A121^2+Sheet1!$B$20*A121+Sheet1!$B$21 -> -3.033018318
A122: 0.19 | B122: =Sheet1!$B$13*A122^8+Sheet1!$B$14*A122^7+Sheet1!$B$15*A122^6+Sheet1!$B$16*A122^5+Sheet1!$B$17*A122^4+Sheet1!$B$18*A122^3+Sheet1!$B$19*A122^2+Sheet1!$B$20*A122+Sheet1!$B$21 -> -2.975146342
A123: 0.2 | B123: =Sheet1!$B$13*A123^8+Sheet1!$B$14*A123^7+Sheet1!$B$15*A123^6+Sheet1!$B$16*A123^5+Sheet1!$B$17*A123^4+Sheet1!$B$18*A123^3+Sheet1!$B$19*A123^2+Sheet1!$B$20*A123+Sheet1!$B$21 -> -2.91680768
A124: 0.21 | B124: =Sheet1!$B$13*A124^8+Sheet1!$B$14*A124^7+Sheet1!$B$15*A124^6+Sheet1!$B$16*A124^5+Sheet1!$B$17*A124^4+Sheet1!$B$18*A124^3+Sheet1!$B$19*A124^2+Sheet1!$B$20*A124+Sheet1!$B$21 -> -2.857997646
A125: 0.22 | B125: =Sheet1!$B$13*A125^8+Sheet1!$B$14*A125^7+Sheet1!$B$15*A125^6+Sheet1!$B$16*A125^5+Sheet1!$B$17*A125^4+Sheet1!$B$18*A125^3+Sheet1!$B$19*A125^2+Sheet1!$B$20*A125+Sheet1!$B$21 -> -2.798711568
A126: 0.23 | B126: =Sheet1!$B$13*A126^8+Sheet1!$B$14*A126^7+Sheet1!$B$15*A126^6+Sheet1!$B$16*A126^5+Sheet1!$B$17*A126^4+Sheet1!$B$18*A126^3+Sheet1!$B$19*A126^2+Sheet1!$B$20*A126+Sheet1!$B$21 -> -2.738944782
A127: 0.24 | B127: =Sheet1!$B$13*A127^8+Sheet1!$B$14*A127^7+Sheet1!$B$15*A127^6+Sheet1!$B$16*A127^5+Sheet1!$B$17*A127^4+Sheet1!$B$18*A127^3+Sheet1!$B$19*A127^2+Sheet1!$B$20*A127+Sheet1!$B$21 -> -2.678692629
A128: 0.25 | B128: =Sheet1!$B$13*A128^8+Sheet1!$B$14*A128^7+Sheet1!$B$15*A128^6+Sheet1!$B$16*A128^5+Sheet1!$B$17*A128^4+Sheet1!$B$18*A128^3+Sheet1!$B$19*A128^2+Sheet1!$B$20*A128+Sheet1!$B$21 -> -2.617950439
A129: 0.26 | B129: =Sheet1!$B$13*A129^8+Sheet1!$B$14*A129^7+Sheet1!$B$15*A129^6+Sheet1!$B$16*A129^5+Sheet1!$B$17*A129^4+Sheet1!$B$18*A129^3+Sheet1!$B$19*A129^2+Sheet1!$B$20*A129+Sheet1!$B$21 -> -2.556713519
A130: 0.27 | B130: =Sheet1!$B$13*A130^8+Sheet1!$B$14*A130^7+Sheet1!$B$15*A130^6+Sheet1!$B$16*A130^5+Sheet1!$B$17*A130^4+Sheet1!$B$18*A130^3+Sheet1!$B$19*A130^2+Sheet1!$B$20*A130+Sheet1!$B$21 -> -2.494977129
A131: 0.28 | B131: =Sheet1!$B$13*A131^8+Sheet1!$B$14*A131^7+Sheet1!$B$15*A131^6+Sheet1!$B$16*A131^5+Sheet1!$B$17*A131^4+Sheet1!$B$18*A131^3+Sheet1!$B$19*A131^2+Sheet1!$B$20*A131+Sheet1!$B$21 -> -2.432736458
A132: =A131+dx -> 0.29 | B132: =Sheet1!$B$13*A132^8+Sheet1!$B$14*A132^7+Sheet1!$B$15*A132^6+Sheet1!$B$16*A132^5+Sheet1!$B$17*A132^4+Sheet1!$B$18*A132^3+Sheet1!$B$19*A132^2+Sheet1!$B$20*A132+Sheet1!$B$21 -> -2.369986592
A133: 0.3 | B133: =Sheet1!$B$13*A133^8+Sheet1!$B$14*A133^7+Sheet1!$B$15*A133^6+Sheet1!$B$16*A133^5+Sheet1!$B$17*A133^4+Sheet1!$B$18*A133^3+Sheet1!$B$19*A133^2+Sheet1!$B$20*A133+Sheet1!$B$21 -> -2.30672248
A134: 0.31 | B134: =Sheet1!$B$13*A134^8+Sheet1!$B$14*A134^7+Sheet1!$B$15*A134^6+Sheet1!$B$16*A134^5+Sheet1!$B$17*A134^4+Sheet1!$B$18*A134^3+Sheet1!$B$19*A134^2+Sheet1!$B$20*A134+Sheet1!$B$21 -> -2.24293889
A135: 0.32 | B135: =Sheet1!$B$13*A135^8+Sheet1!$B$14*A135^7+Sheet1!$B$15*A135^6+Sheet1!$B$16*A135^5+Sheet1!$B$17*A135^4+Sheet1!$B$18*A135^3+Sheet1!$B$19*A135^2+Sheet1!$B$20*A135+Sheet1!$B$21 -> -2.178630365
A136: 0.33 | B136: =Sheet1!$B$13*A136^8+Sheet1!$B$14*A136^7+Sheet1!$B$15*A136^6+Sheet1!$B$16*A136^5+Sheet1!$B$17*A136^4+Sheet1!$B$18*A136^3+Sheet1!$B$19*A136^2+Sheet1!$B$20*A136+Sheet1!$B$21 -> -2.113791169
A137: 0.34 | B137: =Sheet1!$B$13*A137^8+Sheet1!$B$14*A137^7+Sheet1!$B$15*A137^6+Sheet1!$B$16*A137^5+Sheet1!$B$17*A137^4+Sheet1!$B$18*A137^3+Sheet1!$B$19*A137^2+Sheet1!$B$20*A137+Sheet1!$B$21 -> -2.048415227
A138: 0.35 | B138: =Sheet1!$B$13*A138^8+Sheet1!$B$14*A138^7+Sheet1!$B$15*A138^6+Sheet1!$B$16*A138^5+Sheet1!$B$17*A138^4+Sheet1!$B$18*A138^3+Sheet1!$B$19*A138^2+Sheet1!$B$20*A138+Sheet1!$B$21 -> -1.982496065
A139: 0.36 | B139: =Sheet1!$B$13*A139^8+Sheet1!$B$14*A139^7+Sheet1!$B$15*A139^6+Sheet1!$B$16*A139^5+Sheet1!$B$17*A139^4+Sheet1!$B$18*A139^3+Sheet1!$B$19*A139^2+Sheet1!$B$20*A139+Sheet1!$B$21 -> -1.916026734
A140: 0.37 | B140: =Sheet1!$B$13*A140^8+Sheet1!$B$14*A140^7+Sheet1!$B$15*A140^6+Sheet1!$B$16*A140^5+Sheet1!$B$17*A140^4+Sheet1!$B$18*A140^3+Sheet1!$B$19*A140^2+Sheet1!$B$20*A140+Sheet1!$B$21 -> -1.848999735
A141: 0.38 | B141: =Sheet1!$B$13*A141^8+Sheet1!$B$14*A141^7+Sheet1!$B$15*A141^6+Sheet1!$B$16*A141^5+Sheet1!$B$17*A141^4+Sheet1!$B$18*A141^3+Sheet1!$B$19*A141^2+Sheet1!$B$20*A141+Sheet1!$B$21 -> -1.781406936
A142: 0.39 | B142: =Sheet1!$B$13*A142^8+Sheet1!$B$14*A142^7+Sheet1!$B$15*A142^6+Sheet1!$B$16*A142^5+Sheet1!$B$17*A142^4+Sheet1!$B$18*A142^3+Sheet1!$B$19*A142^2+Sheet1!$B$20*A142+Sheet1!$B$21 -> -1.713239479
A143: 0.4 | B143: =Sheet1!$B$13*A143^8+Sheet1!$B$14*A143^7+Sheet1!$B$15*A143^6+Sheet1!$B$16*A143^5+Sheet1!$B$17*A143^4+Sheet1!$B$18*A143^3+Sheet1!$B$19*A143^2+Sheet1!$B$20*A143+Sheet1!$B$21 -> -1.64448768
A144: 0.41 | B144: =Sheet1!$B$13*A144^8+Sheet1!$B$14*A144^7+Sheet1!$B$15*A144^6+Sheet1!$B$16*A144^5+Sheet1!$B$17*A144^4+Sheet1!$B$18*A144^3+Sheet1!$B$19*A144^2+Sheet1!$B$20*A144+Sheet1!$B$21 -> -1.575140927
A145: 0.42 | B145: =Sheet1!$B$13*A145^8+Sheet1!$B$14*A145^7+Sheet1!$B$15*A145^6+Sheet1!$B$16*A145^5+Sheet1!$B$17*A145^4+Sheet1!$B$18*A145^3+Sheet1!$B$19*A145^2+Sheet1!$B$20*A145+Sheet1!$B$21 -> -1.505187563
A146: 0.43 | B146: =Sheet1!$B$13*A146^8+Sheet1!$B$14*A146^7+Sheet1!$B$15*A146^6+Sheet1!$B$16*A146^5+Sheet1!$B$17*A146^4+Sheet1!$B$18*A146^3+Sheet1!$B$19*A146^2+Sheet1!$B$20*A146+Sheet1!$B$21 -> -1.434614767
A147: 0.44 | B147: =Sheet1!$B$13*A147^8+Sheet1!$B$14*A147^7+Sheet1!$B$15*A147^6+Sheet1!$B$16*A147^5+Sheet1!$B$17*A147^4+Sheet1!$B$18*A147^3+Sheet1!$B$19*A147^2+Sheet1!$B$20*A147+Sheet1!$B$21 -> -1.363408418
A148: 0.45 | B148: =Sheet1!$B$13*A148^8+Sheet1!$B$14*A148^7+Sheet1!$B$15*A148^6+Sheet1!$B$16*A148^5+Sheet1!$B$17*A148^4+Sheet1!$B$18*A148^3+Sheet1!$B$19*A148^2+Sheet1!$B$20*A148+Sheet1!$B$21 -> -1.291552966
A149: 0.46 | B149: =Sheet1!$B$13*A149^8+Sheet1!$B$14*A149^7+Sheet1!$B$15*A149^6+Sheet1!$B$16*A149^5+Sheet1!$B$17*A149^4+Sheet1!$B$18*A149^3+Sheet1!$B$19*A149^2+Sheet1!$B$20*A149+Sheet1!$B$21 -> -1.219031275
A150: 0.47 | B150: =Sheet1!$B$13*A150^8+Sheet1!$B$14*A150^7+Sheet1!$B$15*A150^6+Sheet1!$B$16*A150^5+Sheet1!$B$17*A150^4+Sheet1!$B$18*A150^3+Sheet1!$B$19*A150^2+Sheet1!$B$20*A150+Sheet1!$B$21 -> -1.145824471
A151: 0.48 | B151: =Sheet1!$B$13*A151^8+Sheet1!$B$14*A151^7+Sheet1!$B$15*A151^6+Sheet1!$B$16*A151^5+Sheet1!$B$17*A151^4+Sheet1!$B$18*A151^3+Sheet1!$B$19*A151^2+Sheet1!$B$20*A151+Sheet1!$B$21 -> -1.071911776
A152: 0.49 | B152: =Sheet1!$B$13*A152^8+Sheet1!$B$14*A152^7+Sheet1!$B$15*A152^6+Sheet1!$B$16*A152^5+Sheet1!$B$17*A152^4+Sheet1!$B$18*A152^3+Sheet1!$B$19*A152^2+Sheet1!$B$20*A152+Sheet1!$B$21 -> -0.997270328
A153: 0.5 | B153: =Sheet1!$B$13*A153^8+Sheet1!$B$14*A153^7+Sheet1!$B$15*A153^6+Sheet1!$B$16*A153^5+Sheet1!$B$17*A153^4+Sheet1!$B$18*A153^3+Sheet1!$B$19*A153^2+Sheet1!$B$20*A153+Sheet1!$B$21 -> -0.921875
A154: 0.51 | B154: =Sheet1!$B$13*A154^8+Sheet1!$B$14*A154^7+Sheet1!$B$15*A154^6+Sheet1!$B$16*A154^5+Sheet1!$B$17*A154^4+Sheet1!$B$18*A154^3+Sheet1!$B$19*A154^2+Sheet1!$B$20*A154+Sheet1!$B$21 -> -0.8456981995
A155: 0.52 | B155: =Sheet1!$B$13*A155^8+Sheet1!$B$14*A155^7+Sheet1!$B$15*A155^6+Sheet1!$B$16*A155^5+Sheet1!$B$17*A155^4+Sheet1!$B$18*A155^3+Sheet1!$B$19*A155^2+Sheet1!$B$20*A155+Sheet1!$B$21 -> -0.7687096622
A156: 0.53 | B156: =Sheet1!$B$13*A156^8+Sheet1!$B$14*A156^7+Sheet1!$B$15*A156^6+Sheet1!$B$16*A156^5+Sheet1!$B$17*A156^4+Sheet1!$B$18*A156^3+Sheet1!$B$19*A156^2+Sheet1!$B$20*A156+Sheet1!$B$21 -> -0.6908762335
A157: 0.54 | B157: =Sheet1!$B$13*A157^8+Sheet1!$B$14*A157^7+Sheet1!$B$15*A157^6+Sheet1!$B$16*A157^5+Sheet1!$B$17*A157^4+Sheet1!$B$18*A157^3+Sheet1!$B$19*A157^2+Sheet1!$B$20*A157+Sheet1!$B$21 -> -0.6121616378
A158: 0.55 | B158: =Sheet1!$B$13*A158^8+Sheet1!$B$14*A158^7+Sheet1!$B$15*A158^6+Sheet1!$B$16*A158^5+Sheet1!$B$17*A158^4+Sheet1!$B$18*A158^3+Sheet1!$B$19*A158^2+Sheet1!$B$20*A158+Sheet1!$B$21 -> -0.5325262366
A159: 0.56 | B159: =Sheet1!$B$13*A159^8+Sheet1!$B$14*A159^7+Sheet1!$B$15*A159^6+Sheet1!$B$16*A159^5+Sheet1!$B$17*A159^4+Sheet1!$B$18*A159^3+Sheet1!$B$19*A159^2+Sheet1!$B$20*A159+Sheet1!$B$21 -> -0.4519267745
A160: 0.57 | B160: =Sheet1!$B$13*A160^8+Sheet1!$B$14*A160^7+Sheet1!$B$15*A160^6+Sheet1!$B$16*A160^5+Sheet1!$B$17*A160^4+Sheet1!$B$18*A160^3+Sheet1!$B$19*A160^2+Sheet1!$B$20*A160+Sheet1!$B$21 -> -0.3703161115
A161: 0.58 | B161: =Sheet1!$B$13*A161^8+Sheet1!$B$14*A161^7+Sheet1!$B$15*A161^6+Sheet1!$B$16*A161^5+Sheet1!$B$17*A161^4+Sheet1!$B$18*A161^3+Sheet1!$B$19*A161^2+Sheet1!$B$20*A161+Sheet1!$B$21 -> -0.2876429434
A162: 0.59 | B162: =Sheet1!$B$13*A162^8+Sheet1!$B$14*A162^7+Sheet1!$B$15*A162^6+Sheet1!$B$16*A162^5+Sheet1!$B$17*A162^4+Sheet1!$B$18*A162^3+Sheet1!$B$19*A162^2+Sheet1!$B$20*A162+Sheet1!$B$21 -> -0.2038515085
A163: 0.6 | B163: =Sheet1!$B$13*A163^8+Sheet1!$B$14*A163^7+Sheet1!$B$15*A163^6+Sheet1!$B$16*A163^5+Sheet1!$B$17*A163^4+Sheet1!$B$18*A163^3+Sheet1!$B$19*A163^2+Sheet1!$B$20*A163+Sheet1!$B$21 -> -0.11888128
A164: 0.61 | B164: =Sheet1!$B$13*A164^8+Sheet1!$B$14*A164^7+Sheet1!$B$15*A164^6+Sheet1!$B$16*A164^5+Sheet1!$B$17*A164^4+Sheet1!$B$18*A164^3+Sheet1!$B$19*A164^2+Sheet1!$B$20*A164+Sheet1!$B$21 -> -0.03266664456
A165: 0.62 | B165: =Sheet1!$B$13*A165^8+Sheet1!$B$14*A165^7+Sheet1!$B$15*A165^6+Sheet1!$B$16*A165^5+Sheet1!$B$17*A165^4+Sheet1!$B$18*A165^3+Sheet1!$B$19*A165^2+Sheet1!$B$20*A165+Sheet1!$B$21 -> 0.05486343377
A166: 0.63 | B166: =Sheet1!$B$13*A166^8+Sheet1!$B$14*A166^7+Sheet1!$B$15*A166^6+Sheet1!$B$16*A166^5+Sheet1!$B$17*A166^4+Sheet1!$B$18*A166^3+Sheet1!$B$19*A166^2+Sheet1!$B$20*A166+Sheet1!$B$21 -> 0.1437857649
A167: 0.64 | B167: =Sheet1!$B$13*A167^8+Sheet1!$B$14*A167^7+Sheet1!$B$15*A167^6+Sheet1!$B$16*A167^5+Sheet1!$B$17*A167^4+Sheet1!$B$18*A167^3+Sheet1!$B$19*A167^2+Sheet1!$B$20*A167+Sheet1!$B$21 -> 0.2341832995
A168: 0.65 | B168: =Sheet1!$B$13*A168^8+Sheet1!$B$14*A168^7+Sheet1!$B$15*A168^6+Sheet1!$B$16*A168^5+Sheet1!$B$17*A168^4+Sheet1!$B$18*A168^3+Sheet1!$B$19*A168^2+Sheet1!$B$20*A168+Sheet1!$B$21 -> 0.3261455118
A169: 0.66 | B169: =Sheet1!$B$13*A169^8+Sheet1!$B$14*A169^7+Sheet1!$B$15*A169^6+Sheet1!$B$16*A169^5+Sheet1!$B$17*A169^4+Sheet1!$B$18*A169^3+Sheet1!$B$19*A169^2+Sheet1!$B$20*A169+Sheet1!$B$21 -> 0.4197687987
A170: 0.67 | B170: =Sheet1!$B$13*A170^8+Sheet1!$B$14*A170^7+Sheet1!$B$15*A170^6+Sheet1!$B$16*A170^5+Sheet1!$B$17*A170^4+Sheet1!$B$18*A170^3+Sheet1!$B$19*A170^2+Sheet1!$B$20*A170+Sheet1!$B$21 -> 0.5151568961
A171: 0.68 | B171: =Sheet1!$B$13*A171^8+Sheet1!$B$14*A171^7+Sheet1!$B$15*A171^6+Sheet1!$B$16*A171^5+Sheet1!$B$17*A171^4+Sheet1!$B$18*A171^3+Sheet1!$B$19*A171^2+Sheet1!$B$20*A171+Sheet1!$B$21 -> 0.6124213121
A172: 0.69 | B172: =Sheet1!$B$13*A172^8+Sheet1!$B$14*A172^7+Sheet1!$B$15*A172^6+Sheet1!$B$16*A172^5+Sheet1!$B$17*A172^4+Sheet1!$B$18*A172^3+Sheet1!$B$19*A172^2+Sheet1!$B$20*A172+Sheet1!$B$21 -> 0.7116817784
A173: 0.7 | B173: =Sheet1!$B$13*A173^8+Sheet1!$B$14*A173^7+Sheet1!$B$15*A173^6+Sheet1!$B$16*A173^5+Sheet1!$B$17*A173^4+Sheet1!$B$18*A173^3+Sheet1!$B$19*A173^2+Sheet1!$B$20*A173+Sheet1!$B$21 -> 0.81306672
A174: 0.71 | B174: =Sheet1!$B$13*A174^8+Sheet1!$B$14*A174^7+Sheet1!$B$15*A174^6+Sheet1!$B$16*A174^5+Sheet1!$B$17*A174^4+Sheet1!$B$18*A174^3+Sheet1!$B$19*A174^2+Sheet1!$B$20*A174+Sheet1!$B$21 -> 0.9167137437
A175: 0.72 | B175: =Sheet1!$B$13*A175^8+Sheet1!$B$14*A175^7+Sheet1!$B$15*A175^6+Sheet1!$B$16*A175^5+Sheet1!$B$17*A175^4+Sheet1!$B$18*A175^3+Sheet1!$B$19*A175^2+Sheet1!$B$20*A175+Sheet1!$B$21 -> 1.022770146
A176: 0.73 | B176: =Sheet1!$B$13*A176^8+Sheet1!$B$14*A176^7+Sheet1!$B$15*A176^6+Sheet1!$B$16*A176^5+Sheet1!$B$17*A176^4+Sheet1!$B$18*A176^3+Sheet1!$B$19*A176^2+Sheet1!$B$20*A176+Sheet1!$B$21 -> 1.131393439
A177: 0.74 | B177: =Sheet1!$B$13*A177^8+Sheet1!$B$14*A177^7+Sheet1!$B$15*A177^6+Sheet1!$B$16*A177^5+Sheet1!$B$17*A177^4+Sheet1!$B$18*A177^3+Sheet1!$B$19*A177^2+Sheet1!$B$20*A177+Sheet1!$B$21 -> 1.242751902
A178: 0.75 | B178: =Sheet1!$B$13*A178^8+Sheet1!$B$14*A178^7+Sheet1!$B$15*A178^6+Sheet1!$B$16*A178^5+Sheet1!$B$17*A178^4+Sheet1!$B$18*A178^3+Sheet1!$B$19*A178^2+Sheet1!$B$20*A178+Sheet1!$B$21 -> 1.357025146
A179: 0.76 | B179: =Sheet1!$B$13*A179^8+Sheet1!$B$14*A179^7+Sheet1!$B$15*A179^6+Sheet1!$B$16*A179^5+Sheet1!$B$17*A179^4+Sheet1!$B$18*A179^3+Sheet1!$B$19*A179^2+Sheet1!$B$20*A179+Sheet1!$B$21 -> 1.474404709
A180: 0.77 | B180: =Sheet1!$B$13*A180^8+Sheet1!$B$14*A180^7+Sheet1!$B$15*A180^6+Sheet1!$B$16*A180^5+Sheet1!$B$17*A180^4+Sheet1!$B$18*A180^3+Sheet1!$B$19*A180^2+Sheet1!$B$20*A180+Sheet1!$B$21 -> 1.595094662
A181: 0.78 | B181: =Sheet1!$B$13*A181^8+Sheet1!$B$14*A181^7+Sheet1!$B$15*A181^6+Sheet1!$B$16*A181^5+Sheet1!$B$17*A181^4+Sheet1!$B$18*A181^3+Sheet1!$B$19*A181^2+Sheet1!$B$20*A181+Sheet1!$B$21 -> 1.719312248
A182: 0.79 | B182: =Sheet1!$B$13*A182^8+Sheet1!$B$14*A182^7+Sheet1!$B$15*A182^6+Sheet1!$B$16*A182^5+Sheet1!$B$17*A182^4+Sheet1!$B$18*A182^3+Sheet1!$B$19*A182^2+Sheet1!$B$20*A182+Sheet1!$B$21 -> 1.84728854
A183: 0.8 | B183: =Sheet1!$B$13*A183^8+Sheet1!$B$14*A183^7+Sheet1!$B$15*A183^6+Sheet1!$B$16*A183^5+Sheet1!$B$17*A183^4+Sheet1!$B$18*A183^3+Sheet1!$B$19*A183^2+Sheet1!$B$20*A183+Sheet1!$B$21 -> 1.97926912
A184: 0.81 | B184: =Sheet1!$B$13*A184^8+Sheet1!$B$14*A184^7+Sheet1!$B$15*A184^6+Sheet1!$B$16*A184^5+Sheet1!$B$17*A184^4+Sheet1!$B$18*A184^3+Sheet1!$B$19*A184^2+Sheet1!$B$20*A184+Sheet1!$B$21 -> 2.115514785
A185: 0.82 | B185: =Sheet1!$B$13*A185^8+Sheet1!$B$14*A185^7+Sheet1!$B$15*A185^6+Sheet1!$B$16*A185^5+Sheet1!$B$17*A185^4+Sheet1!$B$18*A185^3+Sheet1!$B$19*A185^2+Sheet1!$B$20*A185+Sheet1!$B$21 -> 2.256302279
A186: 0.83 | B186: =Sheet1!$B$13*A186^8+Sheet1!$B$14*A186^7+Sheet1!$B$15*A186^6+Sheet1!$B$16*A186^5+Sheet1!$B$17*A186^4+Sheet1!$B$18*A186^3+Sheet1!$B$19*A186^2+Sheet1!$B$20*A186+Sheet1!$B$21 -> 2.401925048
A187: 0.84 | B187: =Sheet1!$B$13*A187^8+Sheet1!$B$14*A187^7+Sheet1!$B$15*A187^6+Sheet1!$B$16*A187^5+Sheet1!$B$17*A187^4+Sheet1!$B$18*A187^3+Sheet1!$B$19*A187^2+Sheet1!$B$20*A187+Sheet1!$B$21 -> 2.552694019
A188: 0.85 | B188: =Sheet1!$B$13*A188^8+Sheet1!$B$14*A188^7+Sheet1!$B$15*A188^6+Sheet1!$B$16*A188^5+Sheet1!$B$17*A188^4+Sheet1!$B$18*A188^3+Sheet1!$B$19*A188^2+Sheet1!$B$20*A188+Sheet1!$B$21 -> 2.708938415
A189: 0.86 | B189: =Sheet1!$B$13*A189^8+Sheet1!$B$14*A189^7+Sheet1!$B$15*A189^6+Sheet1!$B$16*A189^5+Sheet1!$B$17*A189^4+Sheet1!$B$18*A189^3+Sheet1!$B$19*A189^2+Sheet1!$B$20*A189+Sheet1!$B$21 -> 2.871006582
A190: 0.87 | B190: =Sheet1!$B$13*A190^8+Sheet1!$B$14*A190^7+Sheet1!$B$15*A190^6+Sheet1!$B$16*A190^5+Sheet1!$B$17*A190^4+Sheet1!$B$18*A190^3+Sheet1!$B$19*A190^2+Sheet1!$B$20*A190+Sheet1!$B$21 -> 3.039266859
A191: 0.88 | B191: =Sheet1!$B$13*A191^8+Sheet1!$B$14*A191^7+Sheet1!$B$15*A191^6+Sheet1!$B$16*A191^5+Sheet1!$B$17*A191^4+Sheet1!$B$18*A191^3+Sheet1!$B$19*A191^2+Sheet1!$B$20*A191+Sheet1!$B$21 -> 3.214108466
A192: 0.89 | B192: =Sheet1!$B$13*A192^8+Sheet1!$B$14*A192^7+Sheet1!$B$15*A192^6+Sheet1!$B$16*A192^5+Sheet1!$B$17*A192^4+Sheet1!$B$18*A192^3+Sheet1!$B$19*A192^2+Sheet1!$B$20*A192+Sheet1!$B$21 -> 3.395942428
A193: 0.9 | B193: =Sheet1!$B$13*A193^8+Sheet1!$B$14*A193^7+Sheet1!$B$15*A193^6+Sheet1!$B$16*A193^5+Sheet1!$B$17*A193^4+Sheet1!$B$18*A193^3+Sheet1!$B$19*A193^2+Sheet1!$B$20*A193+Sheet1!$B$21 -> 3.58520252
A194: 0.91 | B194: =Sheet1!$B$13*A194^8+Sheet1!$B$14*A194^7+Sheet1!$B$15*A194^6+Sheet1!$B$16*A194^5+Sheet1!$B$17*A194^4+Sheet1!$B$18*A194^3+Sheet1!$B$19*A194^2+Sheet1!$B$20*A194+Sheet1!$B$21 -> 3.782346255
A195: 0.92 | B195: =Sheet1!$B$13*A195^8+Sheet1!$B$14*A195^7+Sheet1!$B$15*A195^6+Sheet1!$B$16*A195^5+Sheet1!$B$17*A195^4+Sheet1!$B$18*A195^3+Sheet1!$B$19*A195^2+Sheet1!$B$20*A195+Sheet1!$B$21 -> 3.987855893
A196: =A195+dx -> 0.93 | B196: =Sheet1!$B$13*A196^8+Sheet1!$B$14*A196^7+Sheet1!$B$15*A196^6+Sheet1!$B$16*A196^5+Sheet1!$B$17*A196^4+Sheet1!$B$18*A196^3+Sheet1!$B$19*A196^2+Sheet1!$B$20*A196+Sheet1!$B$21 -> 4.20223948
A197: 0.94 | B197: =Sheet1!$B$13*A197^8+Sheet1!$B$14*A197^7+Sheet1!$B$15*A197^6+Sheet1!$B$16*A197^5+Sheet1!$B$17*A197^4+Sheet1!$B$18*A197^3+Sheet1!$B$19*A197^2+Sheet1!$B$20*A197+Sheet1!$B$21 -> 4.426031934
A198: 0.95 | B198: =Sheet1!$B$13*A198^8+Sheet1!$B$14*A198^7+Sheet1!$B$15*A198^6+Sheet1!$B$16*A198^5+Sheet1!$B$17*A198^4+Sheet1!$B$18*A198^3+Sheet1!$B$19*A198^2+Sheet1!$B$20*A198+Sheet1!$B$21 -> 4.659796145
A199: 0.96 | B199: =Sheet1!$B$13*A199^8+Sheet1!$B$14*A199^7+Sheet1!$B$15*A199^6+Sheet1!$B$16*A199^5+Sheet1!$B$17*A199^4+Sheet1!$B$18*A199^3+Sheet1!$B$19*A199^2+Sheet1!$B$20*A199+Sheet1!$B$21 -> 4.904124123
A200: 0.97 | B200: =Sheet1!$B$13*A200^8+Sheet1!$B$14*A200^7+Sheet1!$B$15*A200^6+Sheet1!$B$16*A200^5+Sheet1!$B$17*A200^4+Sheet1!$B$18*A200^3+Sheet1!$B$19*A200^2+Sheet1!$B$20*A200+Sheet1!$B$21 -> 5.159638175
A201: 0.98 | B201: =Sheet1!$B$13*A201^8+Sheet1!$B$14*A201^7+Sheet1!$B$15*A201^6+Sheet1!$B$16*A201^5+Sheet1!$B$17*A201^4+Sheet1!$B$18*A201^3+Sheet1!$B$19*A201^2+Sheet1!$B$20*A201+Sheet1!$B$21 -> 5.426992115
... 3 more rows

Sheet Sheet3
